fUST/lending_fUST_20240817
["ID","MTS","AMOUNT","RATE_DAILY","PERIOD"]
[335114139,1723854548501,-319.45885963,0.00049304,31]
[335114140,1723854548526,-6762.60185089,0.00049305,6]
[335114141,1723854548625,-31036.95925741,0.00049305,6]
[335114142,1723854548650,-500.0,0.00049315,120]
[335114143,1723854548672,-500.0,0.00049315,120]
[335114144,1723854548695,-500.0,0.00049315,120]
[335114145,1723854548716,-500.0,0.00049315,120]
[335114146,1723854548741,-500.0,0.00049315,120]
[335114147,1723854548764,-500.0,0.00049315,120]
[335114148,1723854548786,-500.0,0.00049315,120]
[335114149,1723854548807,-500.0,0.00049315,120]
[335114150,1723854548833,-500.0,0.00049315,120]
[335114151,1723854548856,-500.0,0.00049315,120]
[335114152,1723854548879,-500.0,0.00049315,120]
[335114153,1723854548901,-281.8131142,0.00049315,120]
[335114154,1723854548925,-500.0,0.00049315,120]
[335114155,1723854548946,-500.0,0.00049315,120]
[335114156,1723854548966,-500.0,0.00049399,60]
[335114157,1723854548987,-7200.0,0.00049688,120]
[335114158,1723854549010,-4344.77233121,0.0005,60]
[335114159,1723854549031,-151.0,0.0005,120]
[335114160,1723854549051,-4344.77233021,0.0005,120]
[335114161,1723854549072,-500.0,0.00050399,60]
[335114162,1723854549092,-500.0,0.00051399,60]
[335114163,1723854549112,-500.0,0.00052399,60]
[335114164,1723854549132,-500.0,0.00053399,60]
[335114177,1723854567128,-500.0,0.00054399,60]
[335114178,1723854567150,-283.28,0.00054678,30]
[335114179,1723854567170,-1462.51105676,0.00054688,120]
[335114181,1723854601911,11612.78412122,0.000542,120]
[335114182,1723854607128,38523.50905183,0.000542,120]
[335114187,1723854620500,433.17195137,0.00014519,2]
[335114188,1723854626009,153.3,0.000323,31]
[335114189,1723854626052,153.3,0.000323,31]
[335114190,1723854626132,153.3,0.000323,31]
[335114191,1723854626199,153.3,0.000323,31]
[335114192,1723854626254,153.3,0.000323,31]
[335114193,1723854626313,153.3,0.000323,31]
[335114194,1723854626395,153.3,0.000323,31]
[335114195,1723854626436,153.3,0.000323,31]
[335114196,1723854626496,153.3,0.000323,31]
[335114197,1723854626553,153.3,0.000323,31]
[335114211,1723854632441,-10487.81927156,0.00046911,30]
[335114212,1723854632452,-7417.91926872,0.000542,120]
[335114213,1723854632462,-8579.52146432,0.000542,120]
[335114214,1723854632474,-1701.05344823,0.000542,120]
[335114215,1723854632486,-8951.28654662,0.000542,120]
[335114216,1723854632509,-76.13415839,0.000542,120]
[335114217,1723854632522,-10692.00438244,0.000542,120]
[335114218,1723854632532,-196.73,0.00054676,30]
[335114219,1723854632541,-609.84,0.00054676,30]
[335114220,1723854632551,-508.2,0.00054676,30]
[335114221,1723854632561,-423.5,0.00054676,30]
[335114222,1723854632571,-352.92,0.00054676,30]
[335114223,1723854632580,-500.0,0.00054685,120]
[335114224,1723854632590,-223.62120174,0.00054685,31]
[335114225,1723854632600,-500.0,0.00054685,120]
[335114226,1723854632609,-500.0,0.00054685,120]
[335114227,1723854632619,-18636.37883341,0.00054686,120]
[335114232,1723854638703,-36.26943789,0.00054199,120]
[335114233,1723854638714,-463.73056211,0.00054199,120]
[335114234,1723854638723,-253.53479047,0.00054199,120]
[335114235,1723854638732,-629.23464742,0.000546,120]
[335114236,1723854638789,-112.98951982,0.000546,120]
[335114237,1723854638800,-9257.77583276,0.000546,120]
[335114238,1723854638810,-10000.0,0.000546,120]
[335114239,1723854638818,-10000.0,0.000546,120]
[335114240,1723854638828,-294.1,0.00054676,30]
[335114241,1723854638837,-500.0,0.00054685,120]
[335114242,1723854638846,-532.45804409,0.00054685,120]
[335114243,1723854638855,-15611.85270133,0.00054686,61]
[335114244,1723854638864,-59956.33365637,0.00054686,120]
[335114245,1723854638889,-1198560.41848251,0.00054686,120]
[335114246,1723854638900,-99840.27059462,0.00054686,120]
[335114274,1723854640925,-10000.0,0.000546,120]
[335114275,1723854640936,-10000.0,0.000546,120]
[335114276,1723854640947,-10000.0,0.000546,120]
[335114277,1723854640958,-10000.0,0.000546,120]
[335114278,1723854640969,-10000.0,0.000546,120]
[335114279,1723854640979,-10000.0,0.000546,120]
[335114280,1723854640989,-113757.99172916,0.00054686,120]
[335114329,1723854645242,-1.06208148,0.000546,120]
[335114399,1723854646802,-37.30056659,0.000546,120]
[335114413,1723854701612,2127.07450646,0.00014519,2]
[335114414,1723854701713,155.13932874,0.00014519,2]
[335114415,1723854706186,295.47233467,0.00014519,2]
[335114416,1723854708742,154.80649189,0.00014519,2]
[335114417,1723854711622,196.71565749,0.00014519,2]
[335114418,1723854712457,158.42778892,0.00014519,2]
[335114419,1723854714616,2208.02259481,0.00040586,2]
[335114420,1723854714639,15663.1157411,0.00040586,2]
[335114421,1723854714661,540.91006814,0.00040586,2]
[335114422,1723854714683,1858.41584061,0.00040586,2]
[335114423,1723854716153,342.47979758,0.00014519,2]
[335114424,1723854719034,154.80649189,0.00014519,2]
[335114425,1723854721953,157.02043595,0.00014519,2]
[335114426,1723854722928,569.27511148,0.00014519,2]
[335114427,1723854722983,898.15627799,0.00014519,2]
[335114428,1723854723370,2288.26188511,0.00013971,2]
[335114429,1723854723395,289.3073092,0.00013971,2]
[335114430,1723854773807,-16795.0,0.00013971,2]
[335114435,1723855627154,-287.68988096,0.00012629,2]
[335114436,1723855635096,-2014.41437882,0.00012629,2]
[335114437,1723855642113,-250.0,0.0001276,2]
[335114438,1723855642139,-2141.83182523,0.00012779,2]
[335114439,1723855642164,-83.35689904,0.00012781,2]
[335114440,1723855645113,-216.64310096,0.00012781,2]
[335114441,1723855645136,-3.95340425,0.00012781,2]
[335114442,1723855648150,-296.04659575,0.00012781,2]
[335114443,1723855648174,-1612.67783737,0.00012782,2]
[335114444,1723855648197,-1765.67532584,0.00012782,2]
[335114445,1723855648220,-166.7506071,0.00012794,2]
[335114446,1723855648263,-250.0,0.00012795,2]
[335114447,1723855648308,-250.0,0.0001283,2]
[335114448,1723855648351,-250.0,0.00012865,2]
[335114449,1723855648391,-250.0,0.000129,2]
[335114450,1723855648427,-250.0,0.00012935,2]
[335114451,1723855648470,-250.0,0.0001297,2]
[335114452,1723855648501,-154.80649189,0.00012989,2]
[335114453,1723855648538,-201.87080714,0.00012991,2]
[335114454,1723855648572,-156.93178488,0.00012991,2]
[335114455,1723855648605,-154.80649189,0.00012991,2]
[335114456,1723855648636,-403.58801614,0.00012991,2]
[335114457,1723855648666,-210.13067206,0.00012999,2]
[335114458,1723855648698,-247.38311914,0.00012999,2]
[335114459,1723855649193,-72.72490877,0.00012999,2]
[335114460,1723855649227,-116.89851295,0.00012999,2]
[335114462,1723855746201,-300.0,0.00012584,2]
[335114463,1723855746227,-300.0,0.00012584,2]
[335114464,1723855746252,-24900.0,0.00012585,2]
[335114465,1723855746277,-245.30609513,0.00012781,2]
[335114466,1723855746302,-1611.02761012,0.00012782,2]
[335114467,1723855746326,-231.20582703,0.00012989,2]
[335114468,1723855746351,-665.1114012,0.00012989,2]
[335114469,1723855746375,-3884.01709153,0.00013,2]
[335114470,1723855746399,-193.07381292,0.00013,2]
[335114471,1723855746425,-250.0,0.00013005,2]
[335114472,1723855746450,-250.0,0.0001304,2]
[335114473,1723855746474,-273.3135233,0.00013069,2]
[335114474,1723855746499,-250.0,0.00013075,2]
[335114475,1723855746527,-250.0,0.0001311,2]
[335114476,1723855746551,-250.0,0.00013145,2]
[335114477,1723855746575,-250.0,0.0001318,2]
[335114478,1723855746600,-250.0,0.00013215,2]
[335114479,1723855746624,-250.0,0.00013249,2]
[335114480,1723855746647,-250.0,0.00013284,2]
[335114481,1723855746674,-250.0,0.00013319,2]
[335114482,1723855746697,-250.0,0.00013354,2]
[335114483,1723855746720,-250.0,0.00013389,2]
[335114484,1723855746746,-250.0,0.00013424,2]
[335114485,1723855746768,-810.98237385,0.00013688,2]
[335114486,1723855746794,-420.0,0.00013806,2]
[335114487,1723855746815,-420.0,0.00013842,2]
[335114488,1723855746836,-206.54114914,0.00013971,2]
[335114489,1723855746858,-253.48110571,0.00014145,2]
[335114490,1723855746880,-5743.45897755,0.00014245,2]
[335114491,1723855746905,-413.45265018,0.00014519,2]
[335114492,1723855746929,-587.0,0.00015227,2]
[335114493,1723855746952,-1167.26594458,0.00015392,2]
[335114494,1723855746976,-500.0,0.00015439,2]
[335114495,1723855747001,-500.0,0.00015439,2]
[335114496,1723855747025,-500.0,0.00015439,2]
[335114497,1723855747048,-500.0,0.00015439,2]
[335114498,1723855747076,-500.0,0.00015439,2]
[335114499,1723855747102,-500.0,0.00015439,2]
[335114500,1723855747125,-500.0,0.00015439,2]
[335114501,1723855747147,-500.0,0.00015439,2]
[335114502,1723855747171,-500.0,0.00015439,2]
[335114503,1723855747193,-500.0,0.00015439,2]
[335114504,1723855747216,-500.0,0.00015439,2]
[335114505,1723855747373,-500.0,0.00015439,2]
[335114506,1723855747398,-500.0,0.00015439,2]
[335114507,1723855747423,-500.0,0.00015439,2]
[335114508,1723855747445,-500.0,0.00015439,2]
[335114509,1723855747470,-238.63512866,0.00015439,2]
[335114510,1723855747496,-500.0,0.00015439,2]
[335114511,1723855747520,-500.0,0.00015439,2]
[335114512,1723855747542,-167.0104731,0.00015528,2]
[335114513,1723855747563,-512.738907,0.0001662,2]
[335114514,1723855747585,-673.0,0.00016749,2]
[335114515,1723855747606,-505.92952846,0.0002,2]
[335114516,1723855747627,-512.738907,0.00024929,2]
[335114517,1723855747648,-1167.26594451,0.0002545,2]
[335114518,1723855747671,-151.0,0.0003,120]
[335114519,1723855747695,-153.32,0.000323,31]
[335114520,1723855747719,-153.32,0.000323,31]
[335114521,1723855747743,-153.32,0.000323,31]
[335114522,1723855747766,-153.32,0.000323,31]
[335114523,1723855747790,-153.32,0.000323,31]
[335114524,1723855747814,-153.32,0.000323,31]
[335114525,1723855747838,-153.32,0.000323,31]
[335114526,1723855747862,-153.32,0.000323,31]
[335114527,1723855747884,-1167.26594451,0.00035509,2]
[335114528,1723855747909,-3000.0,0.00038,2]
[335114529,1723855747930,-500.0,0.00042465,120]
[335114530,1723855747953,-4915.56192266,0.00043237,2]
[335114531,1723855747974,-347.25,0.00043318,30]
[335114532,1723855747995,-200.95,0.00043318,30]
[335114533,1723855748016,-167.46,0.00043318,30]
[335114534,1723855748038,-837.34,0.00043318,30]
[335114535,1723855748060,-37909.6008687,0.00043329,5]
[335114536,1723855748082,-500.0,0.00043337,31]
[335114537,1723855748103,-234.7917533,0.00043337,31]
[335114538,1723855748124,-596.52653899,0.00043337,31]
[335114539,1723855748146,-500.0,0.00043337,31]
[335114540,1723855748168,-500.0,0.00043337,31]
[335114541,1723855748189,-209.50183035,0.00043337,31]
[335114542,1723855748211,-500.0,0.00043337,31]
[335114543,1723855748232,-500.0,0.00043337,31]
[335114544,1723855748254,-500.0,0.00043337,31]
[335114545,1723855748276,-300.0,0.00043337,31]
[335114546,1723855748297,-41915.2267,0.00043339,30]
[335114547,1723855748319,-150.112233,0.00044,7]
[335114548,1723855748341,-150.112233,0.00044,6]
[335114549,1723855748361,-207.13953465,0.00044544,21]
[335114550,1723855748383,-150.112233,0.000451,14]
[335114551,1723855748404,-150.112233,0.000451,11]
[335114552,1723855748434,-4915.56192264,0.00045158,2]
[335114553,1723855748456,-1167.26594451,0.00045567,28]
[335114554,1723855748477,-150.112233,0.000462,16]
[335114555,1723855748498,-150.112233,0.000462,14]
[335114556,1723855748519,-4915.56192264,0.00047079,2]
[335114557,1723855748540,-150.112233,0.000473,13]
[335114558,1723855748561,-150.112233,0.000473,11]
[335114559,1723855748582,-150.112233,0.000484,10]
[335114560,1723855748603,-150.112233,0.000484,13]
[335114561,1723855748624,-200.0,0.00048567,10]
[335114562,1723855748646,-4915.56192264,0.00048999,2]
[335114563,1723855748667,-150.112233,0.000492,11]
[335114564,1723855748691,-37909.6008687,0.00049305,6]
[335114565,1723855748712,-500.0,0.00049315,120]
[335114566,1723855748734,-500.0,0.00049315,120]
[335114567,1723855748755,-500.0,0.00049315,120]
[335114568,1723855748776,-500.0,0.00049315,120]
[335114569,1723855748797,-500.0,0.00049315,120]
[335114570,1723855748818,-500.0,0.00049315,120]
[335114571,1723855748841,-500.0,0.00049315,120]
[335114572,1723855748864,-500.0,0.00049315,120]
[335114573,1723855748886,-500.0,0.00049315,120]
[335114574,1723855749008,-500.0,0.00049315,120]
[335114575,1723855749029,-500.0,0.00049315,120]
[335114576,1723855749052,-500.0,0.00049315,120]
[335114577,1723855749073,-500.0,0.00049315,120]
[335114578,1723855749096,-500.0,0.00049315,120]
[335114579,1723855749120,-500.0,0.00049315,120]
[335114580,1723855749141,-500.0,0.00049315,120]
[335114581,1723855749162,-500.0,0.00049315,120]
[335114582,1723855749184,-500.0,0.00049315,120]
[335114583,1723855749205,-500.0,0.00049315,120]
[335114584,1723855749227,-500.0,0.00049315,120]
[335114585,1723855749249,-500.0,0.00049315,120]
[335114586,1723855749270,-500.0,0.00049315,120]
[335114587,1723855749292,-500.0,0.00049315,120]
[335114588,1723855749313,-500.0,0.00049315,120]
[335114589,1723855749335,-500.0,0.00049315,120]
[335114590,1723855749357,-500.0,0.00049315,120]
[335114591,1723855749380,-500.0,0.00049315,120]
[335114592,1723855749402,-500.0,0.00049315,120]
[335114593,1723855749424,-500.0,0.00049315,120]
[335114594,1723855749446,-500.0,0.00049315,120]
[335114595,1723855749467,-500.0,0.00049315,120]
[335114596,1723855749489,-500.0,0.00049315,120]
[335114597,1723855749510,-500.0,0.00049315,120]
[335114598,1723855749531,-500.0,0.00049315,120]
[335114599,1723855749552,-500.0,0.00049315,120]
[335114600,1723855749573,-500.0,0.00049315,120]
[335114601,1723855749595,-500.0,0.00049315,120]
[335114602,1723855749616,-500.0,0.00049315,120]
[335114603,1723855749637,-500.0,0.00049315,120]
[335114604,1723855749658,-244.24564975,0.00049315,120]
[335114605,1723855749682,-500.0,0.00049315,120]
[335114606,1723855749706,-500.0,0.00049315,120]
[335114607,1723855749730,-500.0,0.00049315,120]
[335114608,1723855749750,-500.0,0.00049315,120]
[335114609,1723855749771,-500.0,0.00049315,120]
[335114610,1723855749793,-500.0,0.00049315,120]
[335114611,1723855749814,-500.0,0.00049315,120]
[335114612,1723855749835,-500.0,0.00049315,120]
[335114613,1723855749857,-500.0,0.00049315,120]
[335114614,1723855749879,-550.0,0.00049315,120]
[335114615,1723855749905,-500.0,0.00049315,120]
[335114616,1723855749927,-500.0,0.00049315,120]
[335114617,1723855749949,-500.0,0.00049315,120]
[335114618,1723855749972,-500.0,0.00049315,120]
[335114619,1723855749999,-500.0,0.00049315,120]
[335114620,1723855750021,-500.0,0.00049315,120]
[335114621,1723855750043,-500.0,0.00049315,120]
[335114622,1723855750065,-500.0,0.00049315,120]
[335114623,1723855750087,-500.0,0.00049315,120]
[335114624,1723855750109,-150.112233,0.000495,16]
[335114625,1723855750130,-200.0,0.000495,2]
[335114626,1723855750155,-172.62688794,0.000495,2]
[335114627,1723855750177,-150.112233,0.000495,13]
[335114628,1723855750200,-150.112233,0.000498,14]
[335114629,1723855750221,-400.0,0.00049937,10]
[335114630,1723855750243,-151.0,0.0005,120]
[335114631,1723855750265,-150.112233,0.000503,11]
[335114632,1723855750287,-150.112233,0.000506,11]
[335114633,1723855750309,-150.112233,0.000506,10]
[335114634,1723855750331,-400.0,0.0005087,2]
[335114635,1723855750353,-150.112233,0.000509,13]
[335114636,1723855750374,-4915.56192264,0.0005092,2]
[335114637,1723855750397,-3000.0,0.00051,85]
[335114638,1723855750421,-137791.70751538,0.0005101,6]
[335114639,1723855750974,-2258.26321923,0.00012999,2]
[335114640,1723855751196,-358.88054314,0.00012999,2]
[335114641,1723855751217,-29514.33503862,0.0005101,6]
[335114642,1723855754121,-200.0,0.0005016,2]
[335114643,1723855754143,-241.2,0.00051,30]
[335114644,1723855754166,-1437.6576731,0.0005101,6]
[335114645,1723855756123,-5968.20816864,0.0005101,6]
[335114646,1723855756153,-6016.63822031,0.0005101,6]
[335114647,1723855757113,-8819.45772795,0.0005101,6]
[335114648,1723855757136,-3000.0,0.0005101,85]
[335114649,1723855757159,-146321.13785478,0.0005102,61]
[335114651,1723855766148,-3000.0,0.0005102,85]
[335114652,1723855766173,-3199.635419,0.0005103,85]
[335114653,1723855766196,-150.112233,0.000514,10]
[335114654,1723855766217,-400.0,0.0005153,2]
[335114655,1723855766238,-150.112233,0.000517,10]
[335114656,1723855766259,-150.112233,0.000517,10]
[335114687,1723855827881,809.95963071,0.00014519,2]
[335114736,1723855832164,-98.33675218,0.0005194,10]
[335114738,1723855832178,-501.66324782,0.0005194,10]
[335114741,1723855832188,-150.112233,0.00052,15]
[335114743,1723855832198,-2500.0,0.00052,120]
[335114745,1723855832207,-150.112233,0.000526,15]
[335114747,1723855832218,-150.112233,0.000528,14]
[335114749,1723855832227,-150.112233,0.000528,13]
[335114751,1723855832238,-2620.93782018,0.00053,120]
[335114755,1723855832287,-270.5513048,0.00053,120]
[335114769,1723855837630,-333.95878176,0.00053,120]
[335114770,1723855837719,-1774.55209326,0.00053,120]
[335114771,1723855837729,-2815.04470761,0.00053,120]
[335114772,1723855837741,-2184.95529239,0.00053,120]
[335114773,1723855837752,-150.112233,0.000531,14]
[335114774,1723855837763,-926.78142132,0.0005315,2]
[335114775,1723855837772,-5000.0,0.000532,120]
[335114776,1723855837781,-5000.0,0.0005325,120]
[335114777,1723855837790,-1646.86,0.000533,30]
[335114778,1723855837799,-500.0,0.00053499,120]
[335114779,1723855837808,-500.0,0.00053499,120]
[335114780,1723855837818,-500.0,0.00053499,120]
[335114781,1723855837827,-500.0,0.00053499,120]
[335114782,1723855837837,-500.0,0.00053499,120]
[335114783,1723855837846,-379.42456497,0.00053499,120]
[335114784,1723855837856,-500.0,0.00053499,7]
[335114785,1723855837865,-470.95945874,0.00053499,7]
[335114786,1723855837874,-5000.0,0.000535,120]
[335114787,1723855837884,-5000.0,0.000535,120]
[335114788,1723855837893,-5000.0,0.000535,120]
[335114789,1723855837902,-150.112233,0.000537,11]
[335114790,1723855837911,-5000.0,0.0005375,120]
[335114791,1723855837924,-5000.0,0.0005375,120]
[335114792,1723855837933,-5000.0,0.000538,120]
[335114793,1723855837942,-5000.0,0.000539,120]
[335114794,1723855837953,-150.112233,0.000539,15]
[335114795,1723855837964,-150.112233,0.000539,10]
[335114796,1723855837974,-5000.0,0.00054,120]
[335114797,1723855837983,-5000.0,0.00054,120]
[335114798,1723855837992,-5000.0,0.000541,120]
[335114799,1723855838006,-150.112233,0.000542,12]
[335114800,1723855838016,-150.112233,0.000542,11]
[335114801,1723855838026,-1837.5,0.000542,120]
[335114802,1723855838035,-150.28145351,0.00054247,120]
[335114803,1723855838044,-800.0,0.00054281,10]
[335114804,1723855838054,-14442.72079905,0.00054353,120]
[335114805,1723855839640,153.35,0.000323,31]
[335114806,1723855839671,153.35,0.000323,31]
[335114809,1723855839706,153.35,0.000323,31]
[335114814,1723855839741,153.35,0.000323,31]
[335114818,1723855839777,153.35,0.000323,31]
[335114819,1723855839809,153.35,0.000323,31]
[335114851,1723855845861,-45.83247055,0.00054353,120]
[335114854,1723855845878,-979.98,0.00054353,120]
[335114876,1723855917921,2453.62450049,0.00014519,2]
[335114877,1723855917947,4417.13391918,0.00014519,2]
[335114883,1723856049363,-300.0,0.0001397,2]
[335114884,1723856049392,-209.0,0.0001397,2]
[335114885,1723856049419,-42392.12136225,0.00013971,2]
[335114886,1723856049446,-7010.23526088,0.00013971,2]
[335114887,1723856049472,-4689.21460136,0.00013971,2]
[335114888,1723856075698,-500.0,0.0001397,2]
[335114889,1723856075726,-500.0,0.0001397,2]
[335114890,1723856075752,-500.0,0.0001397,2]
[335114891,1723856075779,-365.76566987,0.0001397,2]
[335114892,1723856075806,-509.0,0.00013971,2]
[335114893,1723856075832,-2711.31124135,0.00013971,2]
[335114894,1723856075857,-809.95963071,0.00013971,2]
[335114895,1723856075882,-46706.32490283,0.00013971,2]
[335114965,1723856827165,-577.46070286,0.00012999,2]
[335114967,1723856839100,-1865.76566987,0.00012999,2]
[335114968,1723856839121,-201.90108991,0.00013025,2]
[335114969,1723856839143,-239.49841873,0.00013025,2]
[335114970,1723856839165,-809.05657821,0.00013477,2]
[335114971,1723856839187,-214.75801558,0.00013971,2]
[335114972,1723856842101,-48.1931438,0.00013971,2]
[335114973,1723856842121,-1452.89913422,0.00013971,2]
[335114974,1723856842142,-763.08760872,0.00013971,2]
[335114975,1723856842163,-159.872278,0.00014247,2]
[335114976,1723856842182,-2071.0,0.00026574,30]
[335114977,1723856842202,-205.826204,0.00027198,2]
[335114978,1723856842223,-250.0,0.00028227,2]
[335114979,1723856842244,-250.0,0.00028304,2]
[335114980,1723856842265,-24.53270205,0.00028382,2]
[335114981,1723856848107,-225.46729795,0.00028382,2]
[335114982,1723856848131,-61.86516377,0.00028459,2]
[335114983,1723856849141,-188.13483623,0.00028459,2]
[335114984,1723856849164,-250.0,0.00028537,2]
[335114985,1723856849189,-250.0,0.00028614,2]
[335114986,1723856849213,-250.0,0.00028692,2]
[335114987,1723856849237,-273.86308599,0.00028766,2]
[335114988,1723856849262,-250.0,0.00028769,2]
[335114989,1723856849287,-250.0,0.00028846,2]
[335114990,1723856849312,-250.0,0.00028924,2]
[335114991,1723856849339,-250.0,0.00029001,2]
[335114992,1723856849365,-250.0,0.00029079,2]
[335114993,1723856849387,-250.0,0.00029156,2]
[335114994,1723856849415,-250.0,0.00029234,2]
[335114995,1723856849437,-250.0,0.00029311,2]
[335114996,1723856849459,-250.0,0.00029388,2]
[335114997,1723856849481,-250.0,0.00029466,2]
[335114998,1723856849502,-250.0,0.00029543,2]
[335114999,1723856849524,-250.0,0.00029621,2]
[335115000,1723856849545,-250.0,0.00029698,2]
[335115001,1723856849573,-153.35,0.000323,31]
[335115002,1723856849599,-153.35,0.000323,31]
[335115003,1723856849623,-153.35,0.000323,31]
[335115004,1723856849648,-153.35,0.000323,31]
[335115005,1723856849672,-207.30729665,0.00037647,7]
[335115006,1723856849694,-2532.53505943,0.00037648,2]
[335115013,1723856949171,-256.93142702,0.00014519,2]
[335115014,1723856949194,-1199.4713184,0.00033618,2]
[335115015,1723856949220,-2747.82505189,0.00035,4]
[335115016,1723856949244,-7982.65837495,0.0003726,2]
[335115017,1723856951133,-16917.34162505,0.0003726,2]
[335115018,1723856951154,-167.010473,0.00039888,2]
[335115019,1723856951175,-167.010473,0.00039907,2]
[335115020,1723856951196,-167.010473,0.00039925,2]
[335115021,1723856951217,-167.010473,0.00039943,2]
[335115022,1723856951240,-167.010473,0.00039961,2]
[335115023,1723856951261,-167.010473,0.00039979,2]
[335115024,1723856951282,-167.010473,0.00039997,2]
[335115025,1723856951302,-167.010473,0.00040015,2]
[335115026,1723856951323,-167.010473,0.00040034,2]
[335115027,1723856951345,-167.010473,0.00040052,2]
[335115028,1723856951368,-167.010473,0.0004007,2]
[335115029,1723856951391,-167.010473,0.00040088,2]
[335115030,1723856951412,-984.16775609,0.0004355,4]
[335115031,1723856956122,-780.37285096,0.0004355,4]
[335115032,1723856957110,-18657.40801615,0.0004355,4]
[335115033,1723856957133,-1203.28878986,0.000439,28]
[335115034,1723856957156,-154.79103311,0.00044,120]
[335115035,1723856957179,-2000.0,0.00044856,120]
[335115036,1723856957201,-2000.0,0.00045692,120]
[335115037,1723856957224,-2000.0,0.00046505,120]
[335115038,1723856957244,-2000.0,0.0004747,120]
[335115039,1723856957266,-2000.0,0.00048236,120]
[335115040,1723856957287,-2000.0,0.00049014,120]
[335115041,1723856957308,-319.93606278,0.00049315,120]
[335115042,1723856957329,-2000.0,0.00049739,120]
[335115043,1723856962109,-1203.28878984,0.000499,28]
[335115044,1723856962133,-876.6719188,0.0005,2]
[335115046,1723856971000,2000.0,0.0004962,120]
[335115047,1723856974794,2000.0,0.0004974,120]
[335115048,1723856984603,121.89974731,0.000498,120]
[335115133,1723857032438,-865.28760033,0.000498,120]
[335115135,1723857032450,-1012.81265236,0.000498,120]
[335115136,1723857032460,-377.18734764,0.0005,2]
[335115139,1723857032484,-90.14559019,0.0005,2]
[335115143,1723857032525,-64.16230032,0.0005,2]
[335115145,1723857032538,-324.87774632,0.0005,2]
[335115274,1723857037863,-8426.9179306,0.0005,2]
[335115275,1723857038000,-59.41330322,0.0005,2]
[335115276,1723857038013,-848.49237873,0.0005,2]
[335115277,1723857039444,-126.82283125,0.0005,2]
[335115278,1723857039454,-741.53719967,0.00051,85]
[335115283,1723857039765,-547.3820516,0.00051,85]
[335115294,1723857041890,-1711.08074873,0.00051,85]
[335115295,1723857041900,-5980.59209,0.0005101,85]
[335115296,1723857041911,-35299.792319,0.0005136,6]
[335115297,1723857041922,-2000.0,0.0005149,120]
[335115298,1723857041934,-150.112233,0.000515,15]
[335115299,1723857041944,-150.112233,0.000518,15]
[335115300,1723857041954,-1000.0,0.00052,120]
[335115301,1723857041965,-1000.0,0.00052111,120]
[335115302,1723857041974,-150.112233,0.000522,16]
[335115303,1723857041984,-1000.0,0.00052222,120]
[335115304,1723857041996,-1000.0,0.00052333,120]
[335115305,1723857042006,-1000.0,0.00052444,120]
[335115306,1723857042019,-1000.0,0.00052556,120]
[335115307,1723857042029,-150.112233,0.000526,14]
[335115308,1723857042041,-1000.0,0.00052667,120]
[335115309,1723857042051,-1000.0,0.00052778,120]
[335115310,1723857042063,-5070.20238583,0.00052797,2]
[335115311,1723857042073,-1000.0,0.00052889,120]
[335115312,1723857042085,-5070.20238583,0.00052922,2]
[335115313,1723857042096,-2000.0,0.0005297,120]
[335115314,1723857042106,-150.112233,0.00053,10]
[335115315,1723857042118,-1000.0,0.00053,120]